Workbook

Sheet sim_f2002
A1: Tavola 1 - Tavole di mortalità della popolazione residente per sesso ed età al 2002
A2: Italia
B3: Maschi 2002 | D3: Femmine 2002
A4: ETÀ x | B4: lx | C4: dx | D4: lx | E4: dx
A6: 0 | B6: 100000 | C6: 468 | D6: 100000 | E6: 397
A7: 1 | B7: 99532 | C7: 30 | D7: 99603 | E7: 27
A8: 2 | B8: 99502 | C8: 22 | D8: 99576 | E8: 20
A9: 3 | B9: 99480 | C9: 17 | D9: 99556 | E9: 15
A10: 4 | B10: 99463 | C10: 14 | D10: 99541 | E10: 13
A11: 5 | B11: 99449 | C11: 13 | D11: 99528 | E11: 11
A12: 6 | B12: 99435 | C12: 13 | D12: 99517 | E12: 11
A13: 7 | B13: 99422 | C13: 14 | D13: 99506 | E13: 10
A14: 8 | B14: 99408 | C14: 13 | D14: 99496 | E14: 9
A15: 9 | B15: 99395 | C15: 13 | D15: 99488 | E15: 8
A16: 10 | B16: 99382 | C16: 13 | D16: 99479 | E16: 10
A17: 11 | B17: 99368 | C17: 13 | D17: 99470 | E17: 10
A18: 12 | B18: 99356 | C18: 15 | D18: 99459 | E18: 11
A19: 13 | B19: 99341 | C19: 19 | D19: 99448 | E19: 13
A20: 14 | B20: 99321 | C20: 27 | D20: 99436 | E20: 14
A21: 15 | B21: 99294 | C21: 37 | D21: 99422 | E21: 16
A22: 16 | B22: 99258 | C22: 49 | D22: 99406 | E22: 20
A23: 17 | B23: 99209 | C23: 60 | D23: 99385 | E23: 23
A24: 18 | B24: 99149 | C24: 70 | D24: 99363 | E24: 24
A25: 19 | B25: 99079 | C25: 77 | D25: 99338 | E25: 25
A26: 20 | B26: 99002 | C26: 82 | D26: 99313 | E26: 26
A27: 21 | B27: 98921 | C27: 86 | D27: 99287 | E27: 25
A28: 22 | B28: 98835 | C28: 88 | D28: 99262 | E28: 27
A29: 23 | B29: 98746 | C29: 90 | D29: 99235 | E29: 26
A30: 24 | B30: 98657 | C30: 92 | D30: 99209 | E30: 27
A31: 25 | B31: 98565 | C31: 90 | D31: 99182 | E31: 27
A32: 26 | B32: 98474 | C32: 90 | D32: 99155 | E32: 27
A33: 27 | B33: 98385 | C33: 89 | D33: 99128 | E33: 29
A34: 28 | B34: 98296 | C34: 87 | D34: 99099 | E34: 30
A35: 29 | B35: 98208 | C35: 85 | D35: 99068 | E35: 31
A36: 30 | B36: 98123 | C36: 87 | D36: 99037 | E36: 33
A37: 31 | B37: 98036 | C37: 87 | D37: 99004 | E37: 35
A38: 32 | B38: 97949 | C38: 90 | D38: 98969 | E38: 37
A39: 33 | B39: 97859 | C39: 95 | D39: 98932 | E39: 41
A40: 34 | B40: 97765 | C40: 100 | D40: 98892 | E40: 44
A41: 35 | B41: 97664 | C41: 104 | D41: 98848 | E41: 48
A42: 36 | B42: 97561 | C42: 108 | D42: 98800 | E42: 53
A43: 37 | B43: 97453 | C43: 112 | D43: 98747 | E43: 57
A44: 38 | B44: 97341 | C44: 119 | D44: 98691 | E44: 62
A45: 39 | B45: 97222 | C45: 128 | D45: 98629 | E45: 68
A46: 40 | B46: 97095 | C46: 137 | D46: 98561 | E46: 74
A47: 41 | B47: 96958 | C47: 145 | D47: 98487 | E47: 80
A48: 42 | B48: 96813 | C48: 157 | D48: 98407 | E48: 87
A49: 43 | B49: 96656 | C49: 169 | D49: 98319 | E49: 95
A50: 44 | B50: 96487 | C50: 187 | D50: 98224 | E50: 105
A51: 45 | B51: 96300 | C51: 204 | D51: 98119 | E51: 117
A52: 46 | B52: 96096 | C52: 220 | D52: 98002 | E52: 130
A53: 47 | B53: 95876 | C53: 247 | D53: 97871 | E53: 141
A54: 48 | B54: 95629 | C54: 267 | D54: 97730 | E54: 154
A55: 49 | B55: 95362 | C55: 291 | D55: 97577 | E55: 170
A56: 50 | B56: 95071 | C56: 319 | D56: 97407 | E56: 183
A57: 51 | B57: 94752 | C57: 353 | D57: 97225 | E57: 201
A58: 52 | B58: 94398 | C58: 390 | D58: 97024 | E58: 223
A59: 53 | B59: 94009 | C59: 446 | D59: 96800 | E59: 250
A60: 54 | B60: 93563 | C60: 472 | D60: 96551 | E60: 272
A61: 55 | B61: 93091 | C61: 513 | D61: 96279 | E61: 298
A62: 56 | B62: 92578 | C62: 567 | D62: 95981 | E62: 324
A63: 57 | B63: 92011 | C63: 642 | D63: 95657 | E63: 350
A64: 58 | B64: 91369 | C64: 704 | D64: 95307 | E64: 374
A65: 59 | B65: 90665 | C65: 796 | D65: 94933 | E65: 410
A66: 60 | B66: 89869 | C66: 856 | D66: 94523 | E66: 437
A67: 61 | B67: 89013 | C67: 924 | D67: 94086 | E67: 458
A68: 62 | B68: 88089 | C68: 996 | D68: 93629 | E68: 497
A69: 63 | B69: 87093 | C69: 1062 | D69: 93131 | E69: 529
A70: 64 | B70: 86031 | C70: 1158 | D70: 92602 | E70: 583
A71: 65 | B71: 84873 | C71: 1271 | D71: 92020 | E71: 656
A72: 66 | B72: 83602 | C72: 1399 | D72: 91364 | E72: 733
A73: 67 | B73: 82203 | C73: 1533 | D73: 90631 | E73: 799
A74: 68 | B74: 80670 | C74: 1656 | D74: 89832 | E74: 872
A75: 69 | B75: 79014 | C75: 1810 | D75: 88960 | E75: 959
A76: 70 | B76: 77204 | C76: 1979 | D76: 88001 | E76: 1051
A77: 71 | B77: 75225 | C77: 2132 | D77: 86950 | E77: 1160
A78: 72 | B78: 73093 | C78: 2304 | D78: 85790 | E78: 1286
A79: 73 | B79: 70789 | C79: 2454 | D79: 84503 | E79: 1432
A80: 74 | B80: 68335 | C80: 2625 | D80: 83072 | E80: 1593
A81: 75 | B81: 65709 | C81: 2806 | D81: 81479 | E81: 1791
A82: 76 | B82: 62904 | C82: 2978 | D82: 79688 | E82: 2005
A83: 77 | B83: 59925 | C83: 3128 | D83: 77683 | E83: 2198
A84: 78 | B84: 56797 | C84: 3294 | D84: 75485 | E84: 2441
A85: 79 | B85: 53504 | C85: 3425 | D85: 73045 | E85: 2688
A86: 80 | B86: 50079 | C86: 3491 | D86: 70357 | E86: 2883
A87: 81 | B87: 46588 | C87: 3454 | D87: 67474 | E87: 3046
A88: 82 | B88: 43134 | C88: 3476 | D88: 64428 | E88: 3255
A89: 83 | B89: 39658 | C89: 3625 | D89: 61173 | E89: 3618
A90: 84 | B90: 36033 | C90: 3922 | D90: 57555 | E90: 4169
A91: 85 | B91: 32111 | C91: 4001 | D91: 53387 | E91: 4597
A92: 86 | B92: 28110 | C92: 3870 | D92: 48790 | E92: 4745
A93: 87 | B93: 24240 | C93: 3610 | D93: 44045 | E93: 4715
A94: 88 | B94: 20630 | C94: 3206 | D94: 39330 | E94: 4501
A95: 89 | B95: 17423 | C95: 2914 | D95: 34829 | E95: 4414
A96: 90 | B96: 14509 | C96: 2621 | D96: 30415 | E96: 4283
A97: 91 | B97: 11888 | C97: 2344 | D97: 26132 | E97: 4099
A98: 92 | B98: 9544 | C98: 2026 | D98: 22033 | E98: 3811
A99: 93 | B99: 7518 | C99: 1719 | D99: 18223 | E99: 3469
A100: 94 | B100: 5800 | C100: 1431 | D100: 14753 | E100: 3099
A101: 95 | B101: 4368 | C101: 1171 | D101: 11654 | E101: 2701
A102: 96 | B102: 3197 | C102: 935 | D102: 8953 | E102: 2292
A103: 97 | B103: 2262 | C103: 715 | D103: 6662 | E103: 1861
A104: 98 | B104: 1547 | C104: 527 | D104: 4800 | E104: 1459
A105: 99 | B105: 1020 | C105: 374 | D105: 3341 | E105: 1101
A106: 100 | B106: 646 | C106: 254 | D106: 2240 | E106: 797
A107: 101 | B107: 393 | C107: 165 | D107: 1443 | E107: 552
A108: 102 | B108: 228 | C108: 102 | D108: 891 | E108: 364
A109: 103 | B109: 125 | C109: 60 | D109: 527 | E109: 229
A110: 104 | B110: 65 | C110: 33 | D110: 297 | E110: 137
A111: 105 | B111: 32 | C111: 17 | D111: 160 | E111: 78
A112: 106 | B112: 15 | C112: 8 | D112: 81 | E112: 42
A113: 107 | B113: 6 | C113: 4 | D113: 39 | E113: 21
A114: 108 | B114: 3 | C114: 2 | D114: 18 | E114: 10
A115: 109 | B115: 1 | C115: 1 | D115: 8 | E115: 5
A116: 110 | B116: 0 | C116: 0 | D116: 3 | E116: 2
A117: 111 | B117: 0 | C117: 0 | D117: 1 | E117: 1
A118: 112 | B118: 0 | C118: 0 | D118: 0 | E118: 0
A119: 113 | B119: 0 | C119: 0 | D119: 0 | E119: 0
A120: 114 | B120: 0 | C120: 0 | D120: 0 | E120: 0
A121: 115 | B121: 0 | C121: 0 | D121: 0 | E121: 0
A122: 116 | B122: 0 | C122: 0 | D122: 0 | E122: 0
A123: 117 | B123: 0 | C123: 0 | D123: 0 | E123: 0
A124: 118 | B124: 0 | C124: 0 | D124: 0 | E124: 0
A125: 119 | B125: 0 | C125: 0 | D125: 0 | E125: 0

Sheet premi TEMP MORTE
A1: ASSICURAZIONE TEMPORANEA CASO MORTE
A2: C = | B2: 200000 | D2: capitale assicurato
A3: n = | B3: 10 | D3: durata della polizza
A4: i = | B4: 0.02 | D4: tasso annuo d'interesse
A5: sesso: | B5: m
A6: x = | B6: 45 | D6: età dell'assicurato
A8: U = | B8: 5894.69 | D8: premio unico
A10: anno | B10: p. annuo | C10: p. naturale
A11: 0 | B11: 651.11 | C11: 415.37
A12: 1 | B12: 651.11 | C12: 448.9
A13: 2 | B13: 651.11 | C13: 505.15
A14: 3 | B14: 651.11 | C14: 547.46
A15: 4 | B15: 651.11 | C15: 598.34
A16: 5 | B16: 651.11 | C16: 657.92
A17: 6 | B17: 651.11 | C17: 732.56
A18: 7 | B18: 651.11 | C18: 808.01
A19: 8 | B19: 651.11 | C19: 930.24
A20: 9 | B20: 651.11 | C20: 989.16

Sheet premi VITA INTERA
A1: ASSICURAZIONE CASO MORTE A VITA INTERA
A2: C = | B2: 200000 | D2: capitale assicurato
A3: n = | B3: 10 | D3: durata pagamento premi annui
A4: i = | B4: 0.02 | D4: tasso annuo d'interesse
A5: sesso: | B5: m
A6: x = | B6: 45 | D6: età dell'assicurato
A8: U = | B8: 103489.53 | D8: premio unico
A10: anno | B10: p. annuo | C10: p. naturale | E10: pesi: hEx
A11: 0 | B11: 11431.2 | C11: 415.37 | E11: 1 | G11: =+C11*E11 -> 415.37
A12: 1 | B12: 11431.2 | C12: 448.9 | E12: 0.9783153137 | G12: =+C12*E12 -> 439.1657443
A13: 2 | B13: 11431.2 | C13: 505.15 | E13: 0.9569368439 | G13: 483.3966467
A14: 3 | B14: 11431.2 | C14: 547.46 | E14: 0.9357564126 | G14: 512.2892056
A15: 4 | B15: 11431.2 | C15: 598.34 | E15: 0.914846807 | G15: 547.3894385
A16: 5 | B16: 11431.2 | C16: 657.92 | E16: 0.8941716908 | G16: 588.2934388
A17: 6 | B17: 11431.2 | C17: 732.56 | E17: 0.8736974497 | G17: 640.0358037
A18: 7 | B18: 11431.2 | C18: 808.01 | E18: 0.8533659371 | G18: 689.5282108
A19: 8 | B19: 11431.2 | C19: 930.24 | E19: 0.8331856314 | G19: 775.0626018
A20: 9 | B20: 11431.2 | C20: 989.16 | E20: 0.8129733431 | G20: 804.1607121
A21: 10 | B21: 0 | C21: 1080.54 | E21: 0.7930118752 | G21: 856.8810517
A22: 11 | B22: 0 | C22: 1200.9 | E22: 0.7731782309 | G22: 928.5097375
A23: 12 | B23: 0 | C23: 1368.12 | E23: 0.7533753435 | G23: 1030.707875
A24: 13 | B24: 0 | C24: 1510.79 | E24: 0.7334497278 | G24: 1108.088514
A25: 14 | B25: 0 | C25: 1721.48 | E25: 0.7135279242 | G25: 1228.324051
A26: 15 | B26: 0 | C26: 1867.64 | E26: 0.6933955428 | G26: 1295.013252
A27: 16 | B27: 0 | C27: 2035.39 | E27: 0.6733244778 | G27: 1370.477909
A28: 17 | B28: 0 | C28: 2217.01 | E28: 0.6532696362 | G28: 1448.305316
A29: 18 | B29: 0 | C29: 2390.95 | E29: 0.6332189039 | G29: 1513.994738
A30: 19 | B30: 0 | C30: 2639.27 | E30: 0.6132328629 | G30: 1618.487098
A31: 20 | B31: 0 | C31: 2936.34 | E31: 0.5931162612 | G31: 1741.591002
A32: 21 | B32: 0 | C32: 3281.19 | E32: 0.572778586 | G32: 1879.395369
A33: 22 | B33: 0 | C33: 3656.66 | E33: 0.5521506675 | G33: 2019.02726
A34: 23 | B34: 0 | C34: 4025.11 | E34: 0.5312290538 | G34: 2138.255377
A35: 24 | B35: 0 | C35: 4491.63 | E35: 0.5101215124 | G35: 2291.277089
A36: 25 | B36: 0 | C36: 5026.15 | E36: 0.4886627345 | G36: 2456.092203
A37: 26 | B37: 0 | C37: 5557.18 | E37: 0.4668006407 | G37: 2594.095185
A38: 27 | B38: 0 | C38: 6180.68 | E38: 0.4446772002 | G38: 2748.407478
A39: 28 | B39: 0 | C39: 6797.33 | E39: 0.422215994 | G39: 2869.941443
A40: 29 | B40: 0 | C40: 7534.97 | E40: 0.3995875336 | G40: 3010.880078
A41: 30 | B41: 0 | C41: 8370.24 | E41: 0.3766980898 | G41: 3153.053419
A42: 31 | B42: 0 | C42: 9285.86 | E42: 0.3535465885 | G42: 3282.984124
A43: 32 | B43: 0 | C43: 10235.02 | E43: 0.3301993844 | G43: 3379.597303
A44: 33 | B44: 0 | C44: 11368.32 | E44: 0.3068269067 | G44: 3488.10646
A45: 34 | B45: 0 | C45: 12551.75 | E45: 0.2833701659 | G45: 3556.79148
A46: 35 | B46: 0 | C46: 13668.6 | E46: 0.2600299361 | G46: 3554.245185
A47: 36 | B47: 0 | C47: 14537.11 | E47: 0.2371600844 | G47: 3447.622235
A48: 37 | B48: 0 | C48: 15801.19 | E48: 0.215271775 | G48: 3401.550218
A49: 38 | B49: 0 | C49: 17922.85 | E49: 0.1940430062 | G49: 3477.803694
A50: 39 | B50: 0 | C50: 21342.09 | E50: 0.1728492247 | G50: 3688.96371
A51: 40 | B51: 0 | C51: 24431.19 | E51: 0.1510152038 | G51: 3689.481136
A52: 41 | B52: 0 | C52: 26994.79 | E52: 0.1296067189 | G52: 3498.706159
A53: 42 | B53: 0 | C53: 29201.45 | E53: 0.1095718803 | G53: 3199.657784
A54: 43 | B54: 0 | C54: 30481.02 | E54: 0.09142512338 | G54: 2786.731014
A55: 44 | B55: 0 | C55: 32794.15 | E55: 0.0756988169 | G55: 2482.478356
A56: 45 | B56: 0 | C56: 35420.88 | E56: 0.061802133 | G56: 2189.085937
A57: 46 | B57: 0 | C57: 38661.49 | E57: 0.04964489634 | G57: 1919.345664
A58: 47 | B58: 0 | C58: 41623.52 | E58: 0.03907473764 | G58: 1626.428124
A59: 48 | B59: 0 | C59: 44807.49 | E59: 0.03017642514 | G59: 1352.129868
A60: 49 | B60: 0 | C60: 48411.09 | E60: 0.02282408048 | G60: 1104.938615
A61: 50 | B61: 0 | C61: 52565.9 | E61: 0.01685185658 | G61: 885.8330081
A62: 51 | B62: 0 | C62: 57345.43 | E62: 0.01209226314 | G62: 693.4360294
A63: 52 | B63: 0 | C63: 61978.81 | E63: 0.008387979914 | G63: 519.8770134
A64: 53 | B64: 0 | C64: 66795.95 | E64: 0.005624124464 | G64: 375.6687365
A65: 54 | B65: 0 | C65: 71895.42 | E65: 0.003635503855 | G65: 261.3760766
A66: 55 | B66: 0 | C66: 76792.33 | E66: 0.002257338995 | G66: 173.346321
A67: 56 | B67: 0 | C67: 82323.01 | E67: 0.001346345877 | G67: 110.8352451
A68: 57 | B68: 0 | C68: 88579.29 | E68: 0.0007657707426 | G68: 67.83142868
A69: 58 | B69: 0 | C69: 94117.65 | E69: 0.0004115984813 | G69: 38.73868181
A70: 59 | B70: 0 | C70: 99547.51 | E70: 0.0002098345199 | G70: 20.88850397
A71: 60 | B71: 0 | C71: 104166.67 | E71: 0.0001012775963 | G71: 10.54974996
A72: 61 | B72: 0 | C72: 117647.06 | E72: 4.654301302e-05 | G72: 5.475648645
A73: 62 | B73: 0 | C73: 98039.22 | E73: 1.825216197e-05 | G73: 1.789427723
A74: 63 | B74: 0 | C74: 130718.95 | E74: 8.94713822e-06 | G74: 1.169560514
A75: 64 | B75: 0 | C75: 196078.43 | E75: 2.923901379e-06 | G75: 0.5733139919
G76: =SUM(G11:G75) -> 103489.5331 | H76: =+G76-B8 -> 0.003054610395

Sheet premi CAP DIFF
A1: ASSICURAZIONE CAPITALE DIFFERITO
A2: C = | B2: 50000 | D2: capitale assicurato
A3: n = | B3: 10 | D3: durata della polizza
A4: i = | B4: 0.02 | D4: tasso annuo d'interesse
A5: sesso: | B5: m
A6: x = | B6: 45 | D6: età dell'assicurato
A8: U = | B8: 39650.59 | D8: premio unico
A10: anno | B10: p. annuo | C10: p. naturale
A11: 0 | B11: 4379.71 | C11: 0
A12: 1 | B12: 4379.71 | C12: 0
A13: 2 | B13: 4379.71 | C13: 0
A14: 3 | B14: 4379.71 | C14: 0
A15: 4 | B15: 4379.71 | C15: 0
A16: 5 | B16: 4379.71 | C16: 0
A17: 6 | B17: 4379.71 | C17: 0
A18: 7 | B18: 4379.71 | C18: 0
A19: 8 | B19: 4379.71 | C19: 0
A20: 9 | B20: 4379.71 | C20: 48772.32

Sheet premi Rend Vit
A1: ASSICURAZIONE DI RENDITA VITALIZIA ANTICIPATA
A2: R = | B2: 15000 | D2: rata assicurata
A3: diff = | B3: 0 | D3: durata del differimento
A4: m = | B4: 15 | D4: durata pagamento premi annui
A5: i = | B5: 0.02 | D5: tasso annuo d'interesse
A6: sesso: | B6: m
A7: x = | B7: 45 | D7: età dell'assicurato
A9: U = | B9: 369152.55 | D9: premio unico
A11: anno | B11: p. annuo | C11: p. naturale | E11: pesi: hEx | G11: CONTROLLO
A12: 0 | B12: 28795.52 | C12: 15000 | E12: 1 | G12: =+E12*C12 -> 15000
A13: 1 | B13: 28795.52 | C13: 15000 | E13: 0.9783153137 | G13: =+E13*C13 -> 14674.7297
A14: 2 | B14: 28795.52 | C14: 15000 | E14: 0.9569368439 | G14: 14354.05266
A15: 3 | B15: 28795.52 | C15: 15000 | E15: 0.9357564126 | G15: 14036.34619
A16: 4 | B16: 28795.52 | C16: 15000 | E16: 0.914846807 | G16: 13722.70211
A17: 5 | B17: 28795.52 | C17: 15000 | E17: 0.8941716908 | G17: 13412.57536
A18: 6 | B18: 28795.52 | C18: 15000 | E18: 0.8736974497 | G18: 13105.46175
A19: 7 | B19: 28795.52 | C19: 15000 | E19: 0.8533659371 | G19: 12800.48906
A20: 8 | B20: 28795.52 | C20: 15000 | E20: 0.8331856314 | G20: 12497.78447
A21: 9 | B21: 28795.52 | C21: 15000 | E21: 0.8129733431 | G21: 12194.60015
A22: 10 | B22: 28795.52 | C22: 15000 | E22: 0.7930118752 | G22: 11895.17813
A23: 11 | B23: 28795.52 | C23: 15000 | E23: 0.7731782309 | G23: 11597.67346
A24: 12 | B24: 28795.52 | C24: 15000 | E24: 0.7533753435 | G24: 11300.63015
A25: 13 | B25: 28795.52 | C25: 15000 | E25: 0.7334497278 | G25: 11001.74592
A26: 14 | B26: 28795.52 | C26: 15000 | E26: 0.7135279242 | G26: 10702.91886
A27: 15 | B27: 0 | C27: 15000 | E27: 0.6933955428 | G27: 10400.93314
A28: 16 | B28: 0 | C28: 15000 | E28: 0.6733244778 | G28: 10099.86717
A29: 17 | B29: 0 | C29: 15000 | E29: 0.6532696362 | G29: 9799.044543
A30: 18 | B30: 0 | C30: 15000 | E30: 0.6332189039 | G30: 9498.283558
A31: 19 | B31: 0 | C31: 15000 | E31: 0.6132328629 | G31: 9198.492943
A32: 20 | B32: 0 | C32: 15000 | E32: 0.5931162612 | G32: 8896.743918
A33: 21 | B33: 0 | C33: 15000 | E33: 0.572778586 | G33: 8591.67879
A34: 22 | B34: 0 | C34: 15000 | E34: 0.5521506675 | G34: 8282.260013
A35: 23 | B35: 0 | C35: 15000 | E35: 0.5312290538 | G35: 7968.435807
A36: 24 | B36: 0 | C36: 15000 | E36: 0.5101215124 | G36: 7651.822687
A37: 25 | B37: 0 | C37: 15000 | E37: 0.4886627345 | G37: 7329.941017
A38: 26 | B38: 0 | C38: 15000 | E38: 0.4668006407 | G38: 7002.009611
A39: 27 | B39: 0 | C39: 15000 | E39: 0.4446772002 | G39: 6670.158003
A40: 28 | B40: 0 | C40: 15000 | E40: 0.422215994 | G40: 6333.23991
A41: 29 | B41: 0 | C41: 15000 | E41: 0.3995875336 | G41: 5993.813003
A42: 30 | B42: 0 | C42: 15000 | E42: 0.3766980898 | G42: 5650.471346
A43: 31 | B43: 0 | C43: 15000 | E43: 0.3535465885 | G43: 5303.198827
A44: 32 | B44: 0 | C44: 15000 | E44: 0.3301993844 | G44: 4952.990765
A45: 33 | B45: 0 | C45: 15000 | E45: 0.3068269067 | G45: 4602.403601
A46: 34 | B46: 0 | C46: 15000 | E46: 0.2833701659 | G46: 4250.552488
A47: 35 | B47: 0 | C47: 15000 | E47: 0.2600299361 | G47: 3900.449042
A48: 36 | B48: 0 | C48: 15000 | E48: 0.2371600844 | G48: 3557.401266
A49: 37 | B49: 0 | C49: 15000 | E49: 0.215271775 | G49: 3229.076624
A50: 38 | B50: 0 | C50: 15000 | E50: 0.1940430062 | G50: 2910.645093
A51: 39 | B51: 0 | C51: 15000 | E51: 0.1728492247 | G51: 2592.73837
A52: 40 | B52: 0 | C52: 15000 | E52: 0.1510152038 | G52: 2265.228056
A53: 41 | B53: 0 | C53: 15000 | E53: 0.1296067189 | G53: 1944.100784
A54: 42 | B54: 0 | C54: 15000 | E54: 0.1095718803 | G54: 1643.578204
A55: 43 | B55: 0 | C55: 15000 | E55: 0.09142512338 | G55: 1371.376851
A56: 44 | B56: 0 | C56: 15000 | E56: 0.0756988169 | G56: 1135.482254
A57: 45 | B57: 0 | C57: 15000 | E57: 0.061802133 | G57: 927.031995
A58: 46 | B58: 0 | C58: 15000 | E58: 0.04964489634 | G58: 744.6734452
A59: 47 | B59: 0 | C59: 15000 | E59: 0.03907473764 | G59: 586.1210646
A60: 48 | B60: 0 | C60: 15000 | E60: 0.03017642514 | G60: 452.6463771
A61: 49 | B61: 0 | C61: 15000 | E61: 0.02282408048 | G61: 342.3612073
A62: 50 | B62: 0 | C62: 15000 | E62: 0.01685185658 | G62: 252.7778488
A63: 51 | B63: 0 | C63: 15000 | E63: 0.01209226314 | G63: 181.3839471
A64: 52 | B64: 0 | C64: 15000 | E64: 0.008387979914 | G64: 125.8196987
A65: 53 | B65: 0 | C65: 15000 | E65: 0.005624124464 | G65: 84.36186695
A66: 54 | B66: 0 | C66: 15000 | E66: 0.003635503855 | G66: 54.53255782
A67: 55 | B67: 0 | C67: 15000 | E67: 0.002257338995 | G67: 33.86008492
A68: 56 | B68: 0 | C68: 15000 | E68: 0.001346345877 | G68: 20.19518815
A69: 57 | B69: 0 | C69: 15000 | E69: 0.0007657707426 | G69: 11.48656114
A70: 58 | B70: 0 | C70: 15000 | E70: 0.0004115984813 | G70: 6.17397722
A71: 59 | B71: 0 | C71: 15000 | E71: 0.0002098345199 | G71: 3.147517798
A72: 60 | B72: 0 | C72: 15000 | E72: 0.0001012775963 | G72: 1.519163945
A73: 61 | B73: 0 | C73: 15000 | E73: 4.654301302e-05 | G73: 0.6981451953
A74: 62 | B74: 0 | C74: 15000 | E74: 1.825216197e-05 | G74: 0.2737824295
A75: 63 | B75: 0 | C75: 15000 | E75: 8.94713822e-06 | G75: 0.1342070733
A76: 64 | B76: 0 | C76: 15000 | E76: 2.923901379e-06 | G76: 0.04385852069
G77: =SUM(G12:G76) -> 369152.5481 | H77: =+G77-B9 -> -0.001857373514 | I77: OK

Sheet premi Rend diff
A1: ASSICURAZIONE DI RENDITA VITALIZIA ANTICIPATA
A2: R = | B2: 15000 | D2: rata assicurata
A3: diff = | B3: 15 | D3: durata del differimento
A5: i = | B5: 0.02 | D5: tasso annuo d'interesse
A6: sesso: | B6: m
A7: x = | B7: 45 | D7: età dell'assicurato
A9: U = | B9: 176855.66 | D9: premio unico
A11: anno | B11: p. annuo | C11: p. naturale | E11: pesi: hEx | G11: CONTROLLO
A12: 0 | B12: 13795.52 | C12: 0 | E12: 1 | G12: =+E12*C12 -> 0
A13: 1 | B13: 13795.52 | C13: 0 | E13: 0.9783153137 | G13: =+E13*C13 -> 0
A14: 2 | B14: 13795.52 | C14: 0 | E14: 0.9569368439 | G14: 0
A15: 3 | B15: 13795.52 | C15: 0 | E15: 0.9357564126 | G15: 0
A16: 4 | B16: 13795.52 | C16: 0 | E16: 0.914846807 | G16: 0
A17: 5 | B17: 13795.52 | C17: 0 | E17: 0.8941716908 | G17: 0
A18: 6 | B18: 13795.52 | C18: 0 | E18: 0.8736974497 | G18: 0
A19: 7 | B19: 13795.52 | C19: 0 | E19: 0.8533659371 | G19: 0
A20: 8 | B20: 13795.52 | C20: 0 | E20: 0.8331856314 | G20: 0
A21: 9 | B21: 13795.52 | C21: 0 | E21: 0.8129733431 | G21: 0
A22: 10 | B22: 13795.52 | C22: 0 | E22: 0.7930118752 | G22: 0
A23: 11 | B23: 13795.52 | C23: 0 | E23: 0.7731782309 | G23: 0
A24: 12 | B24: 13795.52 | C24: 0 | E24: 0.7533753435 | G24: 0
A25: 13 | B25: 13795.52 | C25: 0 | E25: 0.7334497278 | G25: 0
A26: 14 | B26: 13795.52 | C26: 0 | E26: 0.7135279242 | G26: 0
A27: 15 | B27: 0 | C27: 15000 | E27: 0.6933955428 | G27: 10400.93314
A28: 16 | B28: 0 | C28: 15000 | E28: 0.6733244778 | G28: 10099.86717
A29: 17 | B29: 0 | C29: 15000 | E29: 0.6532696362 | G29: 9799.044543
A30: 18 | B30: 0 | C30: 15000 | E30: 0.6332189039 | G30: 9498.283558
A31: 19 | B31: 0 | C31: 15000 | E31: 0.6132328629 | G31: 9198.492943
A32: 20 | B32: 0 | C32: 15000 | E32: 0.5931162612 | G32: 8896.743918
A33: 21 | B33: 0 | C33: 15000 | E33: 0.572778586 | G33: 8591.67879
A34: 22 | B34: 0 | C34: 15000 | E34: 0.5521506675 | G34: 8282.260013
A35: 23 | B35: 0 | C35: 15000 | E35: 0.5312290538 | G35: 7968.435807
A36: 24 | B36: 0 | C36: 15000 | E36: 0.5101215124 | G36: 7651.822687
A37: 25 | B37: 0 | C37: 15000 | E37: 0.4886627345 | G37: 7329.941017
A38: 26 | B38: 0 | C38: 15000 | E38: 0.4668006407 | G38: 7002.009611
A39: 27 | B39: 0 | C39: 15000 | E39: 0.4446772002 | G39: 6670.158003
A40: 28 | B40: 0 | C40: 15000 | E40: 0.422215994 | G40: 6333.23991
A41: 29 | B41: 0 | C41: 15000 | E41: 0.3995875336 | G41: 5993.813003
A42: 30 | B42: 0 | C42: 15000 | E42: 0.3766980898 | G42: 5650.471346
A43: 31 | B43: 0 | C43: 15000 | E43: 0.3535465885 | G43: 5303.198827
A44: 32 | B44: 0 | C44: 15000 | E44: 0.3301993844 | G44: 4952.990765
A45: 33 | B45: 0 | C45: 15000 | E45: 0.3068269067 | G45: 4602.403601
A46: 34 | B46: 0 | C46: 15000 | E46: 0.2833701659 | G46: 4250.552488
A47: 35 | B47: 0 | C47: 15000 | E47: 0.2600299361 | G47: 3900.449042
A48: 36 | B48: 0 | C48: 15000 | E48: 0.2371600844 | G48: 3557.401266
A49: 37 | B49: 0 | C49: 15000 | E49: 0.215271775 | G49: 3229.076624
A50: 38 | B50: 0 | C50: 15000 | E50: 0.1940430062 | G50: 2910.645093
A51: 39 | B51: 0 | C51: 15000 | E51: 0.1728492247 | G51: 2592.73837
A52: 40 | B52: 0 | C52: 15000 | E52: 0.1510152038 | G52: 2265.228056
A53: 41 | B53: 0 | C53: 15000 | E53: 0.1296067189 | G53: 1944.100784
A54: 42 | B54: 0 | C54: 15000 | E54: 0.1095718803 | G54: 1643.578204
A55: 43 | B55: 0 | C55: 15000 | E55: 0.09142512338 | G55: 1371.376851
A56: 44 | B56: 0 | C56: 15000 | E56: 0.0756988169 | G56: 1135.482254
A57: 45 | B57: 0 | C57: 15000 | E57: 0.061802133 | G57: 927.031995
A58: 46 | B58: 0 | C58: 15000 | E58: 0.04964489634 | G58: 744.6734452
A59: 47 | B59: 0 | C59: 15000 | E59: 0.03907473764 | G59: 586.1210646
A60: 48 | B60: 0 | C60: 15000 | E60: 0.03017642514 | G60: 452.6463771
A61: 49 | B61: 0 | C61: 15000 | E61: 0.02282408048 | G61: 342.3612073
A62: 50 | B62: 0 | C62: 15000 | E62: 0.01685185658 | G62: 252.7778488
A63: 51 | B63: 0 | C63: 15000 | E63: 0.01209226314 | G63: 181.3839471
A64: 52 | B64: 0 | C64: 15000 | E64: 0.008387979914 | G64: 125.8196987
A65: 53 | B65: 0 | C65: 15000 | E65: 0.005624124464 | G65: 84.36186695
A66: 54 | B66: 0 | C66: 15000 | E66: 0.003635503855 | G66: 54.53255782
A67: 55 | B67: 0 | C67: 15000 | E67: 0.002257338995 | G67: 33.86008492
A68: 56 | B68: 0 | C68: 15000 | E68: 0.001346345877 | G68: 20.19518815
A69: 57 | B69: 0 | C69: 15000 | E69: 0.0007657707426 | G69: 11.48656114
A70: 58 | B70: 0 | C70: 15000 | E70: 0.0004115984813 | G70: 6.17397722
A71: 59 | B71: 0 | C71: 15000 | E71: 0.0002098345199 | G71: 3.147517798
A72: 60 | B72: 0 | C72: 15000 | E72: 0.0001012775963 | G72: 1.519163945
A73: 61 | B73: 0 | C73: 15000 | E73: 4.654301302e-05 | G73: 0.6981451953
A74: 62 | B74: 0 | C74: 15000 | E74: 1.825216197e-05 | G74: 0.2737824295
A75: 63 | B75: 0 | C75: 15000 | E75: 8.94713822e-06 | G75: 0.1342070733
A76: 64 | B76: 0 | C76: 15000 | E76: 2.923901379e-06 | G76: 0.04385852069
G77: =SUM(G12:G76) -> 176855.6602 | H77: =+G77-B9 -> 0.0001800518367 | I77: OK
